bitfinex-derivatives/quotes_BTCF0:USTF0_20241218
["timestamp","ask_amount","ask_price","bid_price","bid_amount"]
[1734481904250,0.64679704,105940.0,105930.0,0.0105]
[1734481907950,0.047193,105930.0,105920.0,0.66908742]
[1734481908144,0.10314702,105930.0,105920.0,0.67908742]
[1734481908347,0.10314702,105930.0,105920.0,0.057696]
[1734481908545,0.10314702,105930.0,105920.0,0.67908742]
[1734481908946,0.10314702,105930.0,105920.0,2.17858742]
[1734481909449,0.10314702,105930.0,105920.0,1.557196]
[1734481910057,0.05595402,105930.0,105920.0,1.557696]
[1734481910249,0.10314702,105930.0,105920.0,1.557696]
[1734481910960,0.87585506,105930.0,105900.0,0.72139142]
[1734481911164,0.04722,105870.0,105860.0,0.6118832]
[1734481911350,0.40802,105870.0,105860.0,0.057223]
[1734481911652,0.42330509,105870.0,105860.0,0.057223]
[1734481911858,0.47925911,105870.0,105860.0,0.057223]
[1734481912155,0.47925911,105870.0,105860.0,0.047223]
[1734481912354,0.47925911,105870.0,105850.0,0.3708]
[1734481912559,0.57588706,105860.0,105850.0,0.01]
[1734481912749,0.51993304,105860.0,105850.0,0.01]
[1734481912950,0.408025,105860.0,105850.0,0.057229]
[1734481913253,0.15913304,105860.0,105850.0,0.057229]
[1734481914052,0.13285358,105860.0,105850.0,0.057229]
[1734481915756,0.047229,105850.0,105840.0,0.047232]
[1734481915959,0.08562858,105850.0,105840.0,0.408032]
[1734481916148,0.62635058,105870.0,105850.0,0.047229]
[1734481916348,0.13285358,105860.0,105850.0,0.047229]
[1734481919957,0.047229,105850.0,105840.0,1.908033]
[1734481920158,0.047229,105850.0,105840.0,1.547234]
[1734481920358,0.047229,105850.0,105840.0,1.908034]
[1734481920556,0.50328473,105860.0,105850.0,0.047229]
[1734481920853,0.00962915,105860.0,105850.0,0.047229]
[1734481921057,0.69232303,105870.0,105850.0,0.047229]
[1734481921261,0.047225,105860.0,105850.0,0.047229]
[1734481921757,0.047225,105860.0,105850.0,1.547229]
[1734481922058,0.047225,105860.0,105850.0,1.908029]
[1734481922359,0.56865597,105870.0,105860.0,0.047225]
[1734481922655,0.65428455,105870.0,105860.0,0.047225]
[1734481925559,0.00918452,105870.0,105860.0,0.49365358]
[1734481925765,0.091512,105890.0,105860.0,0.59065358]
[1734481925952,0.091512,105890.0,105880.0,0.047216]
[1734481926156,0.17714058,105890.0,105870.0,0.3608]
[1734481926356,0.047216,105880.0,105870.0,0.408018]
[1734481926558,0.04722,105870.0,105860.0,0.505024]
[1734481926753,0.04722,105870.0,105860.0,0.144224]
[1734481927465,0.04722,105870.0,105860.0,0.057224]
[1734481927863,0.40802,105870.0,105860.0,0.057224]
[1734481928060,0.04722,105870.0,105860.0,0.057224]
[1734481929251,0.40802,105870.0,105860.0,0.01]
[1734481929651,0.40802,105870.0,105860.0,0.057225]
[1734481929870,0.53854858,105870.0,105860.0,0.01]
[1734481930060,0.45292,105870.0,105860.0,0.01]
[1734481930570,0.53854858,105870.0,105860.0,0.01]
[1734481930766,0.58244858,105870.0,105860.0,0.01]
[1734481931468,0.66807716,105870.0,105860.0,0.01]
[1734481931667,0.58244858,105870.0,105860.0,0.01]
[1734481932162,0.66807716,105870.0,105860.0,0.01]
[1734481932859,0.58244858,105870.0,105860.0,0.01]
[1734481933458,0.66807716,105870.0,105860.0,0.01]
[1734481933655,0.047225,105860.0,105830.0,0.00141725]
[1734481933865,0.49366258,105850.0,105840.0,0.047233]
[1734481934059,0.49366258,105850.0,105840.0,0.057233]
[1734481934662,0.13286258,105850.0,105840.0,0.057233]
[1734481935758,0.49366258,105850.0,105840.0,0.057233]
[1734481936367,0.49366258,105850.0,105840.0,0.01]
[1734481936762,0.49366258,105850.0,105830.0,0.05865325]
[1734481936763,0.047234,105840.0,105830.0,0.05865325]
[1734481937070,0.49366258,105840.0,105830.0,0.057236]
[1734481937768,0.408034,105840.0,105830.0,0.057236]
[1734481937969,0.49366258,105840.0,105830.0,0.057236]
[1734481939261,0.66351736,105840.0,105830.0,0.01]
[1734481939566,0.49366258,105840.0,105830.0,0.01]
[1734481939966,0.49366258,105840.0,105830.0,0.0105]
[1734481940169,0.54016258,105840.0,105830.0,0.0105]
[1734481941072,0.54016258,105840.0,105830.0,0.01]
[1734481941268,0.62579116,105840.0,105830.0,0.01]
[1734481941459,0.62579116,105840.0,105810.0,0.37011285]
[1734481941664,0.3608,105820.0,105800.0,0.15928874]
[1734481941974,0.08562858,105810.0,105800.0,0.20168874]
[1734481942273,0.047247,105810.0,105800.0,0.20168874]
[1734481942468,0.44642858,105820.0,105800.0,2.06248874]
[1734481942674,0.44642858,105820.0,105810.0,0.047247]
[1734481943874,0.49367058,105820.0,105810.0,0.047247]
[1734481945476,0.44642858,105820.0,105810.0,0.047247]
[1734481945772,0.08562858,105820.0,105810.0,0.047247]
[1734481946471,0.08562858,105820.0,105810.0,0.408047]
[1734481947167,0.08562858,105820.0,105810.0,0.047247]
[1734481947583,0.49367058,105820.0,105810.0,0.047247]
[1734481948166,0.50321739,105820.0,105810.0,0.047247]
[1734481948371,0.047247,105810.0,105800.0,0.19168774]
[1734481948585,0.49367558,105810.0,105800.0,0.19168774]
[1734481948880,0.3608,105810.0,105800.0,0.19168774]
[1734481949175,0.44642858,105810.0,105800.0,0.19168774]
[1734481949383,0.008901,105810.0,105800.0,0.19168774]
[1734481949578,0.008901,105810.0,105800.0,0.19106774]
[1734481949777,0.051901,105810.0,105800.0,0.19106774]
[1734481950076,0.043,105810.0,105800.0,0.19106774]
[1734481950283,0.49367558,105810.0,105800.0,0.14866774]
[1734481951678,0.49367558,105810.0,105800.0,0.14725]
[1734481953474,0.57753958,105810.0,105800.0,0.14725]
[1734481953780,0.69165032,105820.0,105810.0,0.047247]
[1734481953972,0.69165032,105820.0,105810.0,0.49417558]
[1734481953973,0.00954681,105820.0,105810.0,0.49417558]
[1734481954174,0.19568266,105830.0,105810.0,0.54037558]
[1734481954374,0.21673158,105830.0,105820.0,0.047242]
[1734481954774,0.22595987,105830.0,105820.0,0.047242]
[1734481955273,0.22595987,105830.0,105810.0,0.407]
[1734481955481,0.49367058,105820.0,105810.0,0.047246]
[1734481956180,0.047247,105810.0,105800.0,0.14775]
[1734481956987,0.047247,105810.0,105800.0,0.50855]
[1734481958876,0.580108,105820.0,105810.0,0.047247]
[1734481959486,0.580108,105820.0,105810.0,1.547247]
[1734481959985,0.580108,105820.0,105810.0,0.047247]
[1734481960581,0.047247,105810.0,105800.0,2.00855]
[1734481960780,0.047247,105810.0,105800.0,1.64775]
[1734481960977,0.047247,105810.0,105800.0,2.00855]
[1734481961387,0.047244,105820.0,105810.0,0.047247]
[1734481962091,0.13287258,105820.0,105810.0,0.047247]
[1734481962595,0.047244,105820.0,105810.0,0.047247]
[1734481962791,0.408044,105820.0,105810.0,0.047247]
[1734481963189,0.047244,105820.0,105810.0,0.047247]
[1734481963393,0.093244,105820.0,105810.0,0.047247]
[1734481963691,0.093244,105820.0,105810.0,0.04954857]
[1734481963898,0.140244,105820.0,105810.0,0.04954857]
[1734481964285,0.182844,105820.0,105810.0,0.04954857]
[1734481965991,0.543644,105820.0,105810.0,0.04954857]
[1734481966196,0.182844,105820.0,105810.0,0.04954857]
[1734481966595,0.543644,105820.0,105810.0,0.04954857]
[1734481968393,0.62763527,105820.0,105810.0,0.04954857]
[1734481968790,0.26683527,105820.0,105810.0,0.04954857]
[1734481969294,1.01490116,105820.0,105800.0,0.1]
[1734481969593,0.047251,105800.0,105790.0,0.058253]
[1734481969990,0.49203927,105810.0,105800.0,0.047251]
[1734481970297,0.408048,105810.0,105800.0,0.047251]
[1734481970595,0.047251,105800.0,105790.0,0.462253]
[1734481970991,0.13287958,105800.0,105790.0,0.101953]
[1734481971299,0.13287958,105800.0,105790.0,0.058253]
[1734481971496,0.58047958,105800.0,105790.0,0.011]
[1734481972096,0.58047958,105800.0,105790.0,0.0105]
[1734481973101,0.58047958,105800.0,105790.0,0.011]
[1734481973788,0.62364227,105800.0,105790.0,0.011]
[1734481973990,0.70927085,105800.0,105790.0,0.011]
[1734481974190,0.70927085,105800.0,105790.0,0.0105]
[1734481975093,0.70927085,105800.0,105790.0,0.011]
[1734481976097,0.70927085,105800.0,105790.0,0.0105]
[1734481976593,0.62527958,105800.0,105790.0,0.0105]
[1734481981700,0.047265,105770.0,105760.0,0.01076]
[1734481981900,0.85449358,105770.0,105760.0,0.00084175]
[1734481982103,0.94769358,105770.0,105760.0,0.00084175]
[1734481982401,0.047265,105770.0,105760.0,0.45451075]
[1734481982800,0.047262,105780.0,105770.0,0.047263]
[1734481982999,0.047262,105780.0,105770.0,0.450863]
[1734481983203,0.13289058,105780.0,105770.0,0.136263]
[1734481983413,0.047262,105780.0,105770.0,1.997063]
[1734481983791,0.047257,105790.0,105780.0,0.04726]
[1734481983996,0.05659103,105800.0,105790.0,0.047256]
[1734481984200,0.04734102,105800.0,105790.0,0.453956]
[1734481984401,0.1329696,105800.0,105790.0,0.4067]
[1734481984703,0.04734102,105800.0,105790.0,1.953956]
[1734481985495,8.802e-05,105800.0,105790.0,2.03958458]
[1734481985702,8.802e-05,105800.0,105790.0,1.953956]
[1734481985896,0.1329676,105800.0,105790.0,0.0459]
[1734481986202,0.04733902,105800.0,105790.0,0.0459]
[1734481986403,0.1329676,105800.0,105790.0,0.0459]
[1734481987500,0.04733902,105800.0,105790.0,0.0459]
[1734481988503,0.04733902,105800.0,105790.0,0.093156]
[1734481989899,0.1329676,105800.0,105790.0,0.0459]
[1734481990313,0.04733902,105800.0,105790.0,0.0459]
[1734481990510,0.04733902,105800.0,105790.0,0.093156]
[1734481992906,8.802e-05,105800.0,105790.0,0.53958458]
[1734481994003,8.802e-05,105800.0,105790.0,2.03958458]
[1734481994212,0.0005,105820.0,105810.0,0.047247]
[1734481994401,0.0005,105820.0,105810.0,0.408047]
[1734481995230,0.41908391,105830.0,105810.0,0.408047]
[1734481995614,0.41908391,105830.0,105820.0,0.0425]
[1734481995802,0.41908391,105830.0,105820.0,0.089742]
[1734482000217,0.41958391,105830.0,105820.0,0.089742]
[1734482001605,0.05878391,105830.0,105820.0,0.089742]
[1734482002822,0.50521249,105830.0,105820.0,0.0425]
[1734482004117,0.50521249,105830.0,105820.0,0.089742]
[1734482004816,0.41958391,105830.0,105820.0,0.089742]
[1734482007727,0.41958391,105830.0,105820.0,0.0425]
[1734482008613,0.41958391,105830.0,105820.0,0.089742]
[1734482010422,0.0005,105830.0,105820.0,0.53617058]
[1734482010720,0.14050146,105850.0,105840.0,0.047234]
[1734482010923,0.14050146,105850.0,105840.0,1.547234]
[1734482010924,0.04730146,105850.0,105840.0,1.547234]
[1734482011122,0.04730146,105850.0,105840.0,1.592934]
[1734482011426,0.04730146,105850.0,105840.0,1.953734]
[1734482014726,6.946e-05,105850.0,105840.0,1.953734]
[1734482015329,0.00056946,105850.0,105840.0,1.953734]
[1734482017425,0.00056946,105850.0,105840.0,2.03936258]
[1734482019231,0.00056946,105850.0,105840.0,2.12499116]
[1734482019429,0.00056946,105850.0,105840.0,2.03936258]
[1734482019928,0.01141747,105880.0,105870.0,0.04722]
[1734482020120,0.01141747,105880.0,105870.0,0.49364858]
[1734482020320,0.01141747,105880.0,105870.0,1.99364858]
[1734482020522,0.01,105880.0,105870.0,1.99364858]
[1734482020926,0.01,105880.0,105870.0,1.99371953]
[1734482021535,0.01,105880.0,105870.0,1.90809095]
[1734482021723,0.01,105880.0,105870.0,1.99371953]
[1734482022926,0.01,105880.0,105870.0,2.03741953]
[1734482027236,0.01,105880.0,105870.0,2.12304811]
[1734482027531,0.01,105880.0,105870.0,2.03741953]
[1734482027926,0.01,105880.0,105870.0,2.12304811]
[1734482028232,0.01,105880.0,105870.0,2.03741953]
[1734482028638,0.07605476,105910.0,105900.0,0.047207]
[1734482029222,0.43685476,105910.0,105900.0,0.047207]
[1734482029431,0.047207,105900.0,105890.0,0.408009]
[1734482030537,0.41777336,105910.0,105900.0,0.047207]
[1734482031331,0.50340194,105910.0,105900.0,0.047207]
[1734482032621,0.047211,105890.0,105880.0,0.408014]
[1734482032825,0.047211,105890.0,105880.0,0.047214]
[1734482033033,0.137511,105890.0,105880.0,0.047214]
[1734482034032,0.047216,105880.0,105870.0,0.0014878]
[1734482034337,0.408516,105880.0,105870.0,0.0014878]
[1734482035937,0.49414458,105880.0,105870.0,0.0014878]
[1734482036633,0.408516,105880.0,105870.0,0.0014878]
[1734482037229,0.408016,105880.0,105870.0,0.0014878]
[1734482038624,0.49364458,105880.0,105870.0,0.0014878]
[1734482039539,0.49364458,105880.0,105870.0,7.095e-05]
[1734482040142,0.79364458,105880.0,105870.0,7.095e-05]
[1734482040438,0.047229,105850.0,105840.0,0.451032]
[1734482040645,0.047229,105850.0,105840.0,0.408032]
[1734482040834,0.047229,105850.0,105840.0,1.547232]
[1734482041330,0.047229,105850.0,105840.0,1.54733206]
[1734482042735,0.408029,105850.0,105840.0,1.54733206]
[1734482043039,0.408029,105850.0,105840.0,0.00010006]
[1734482043938,0.49365758,105850.0,105840.0,0.00010006]
[1734482045148,0.49365758,105850.0,105840.0,0.00060006]
[1734482045833,0.50293471,105850.0,105840.0,0.00060006]
[1734482046037,0.58706972,105850.0,105840.0,0.00060006]
[1734482046842,0.6726983,105850.0,105840.0,0.00060006]
[1734482047050,0.58706972,105850.0,105840.0,0.00060006]
[1734482047348,0.50293471,105850.0,105840.0,0.00060006]
[1734482049445,0.58856329,105850.0,105840.0,0.00060006]
[1734482049641,0.50293471,105850.0,105840.0,0.00060006]
[1734482051436,0.58856329,105850.0,105840.0,0.00060006]
[1734482052045,0.047238,105830.0,105820.0,1.5]
[1734482052240,0.49366658,105830.0,105820.0,1.5]
[1734482052952,0.49366658,105830.0,105820.0,8.065e-05]
[1734482053250,0.58066658,105830.0,105820.0,8.065e-05]
[1734482055752,0.50428555,105830.0,105820.0,8.065e-05]
[1734482055950,0.047238,105830.0,105820.0,0.13295123]
[1734482056345,0.047238,105830.0,105820.0,0.04732265]
[1734482057250,0.047235,105840.0,105830.0,0.047238]
[1734482057452,0.047235,105840.0,105830.0,0.449138]
[1734482057644,0.047232,105850.0,105840.0,0.047231]
[1734482057849,0.047232,105850.0,105840.0,0.090931]
[1734482057850,0.13286058,105850.0,105840.0,0.090931]
[1734482059043,0.047232,105850.0,105840.0,0.090931]
[1734482059549,0.41743093,105860.0,105850.0,0.047229]
[1734482059945,0.408026,105860.0,105850.0,0.047229]
[1734482060250,0.047222,105870.0,105860.0,0.047225]
[1734482060451,0.047222,105870.0,105860.0,0.50080379]
[1734482060958,0.4099347,105880.0,105870.0,0.04722]
[1734482061265,0.4094347,105880.0,105870.0,0.09302]
[1734482061446,0.0014177,105880.0,105870.0,0.53944858]
[1734482061651,0.05651116,105890.0,105880.0,0.047216]
[1734482062557,0.05651116,105890.0,105880.0,0.408016]
[1734482063056,0.00929816,105890.0,105880.0,0.408016]
[1734482063250,0.20160728,105900.0,105880.0,0.3608]
[1734482063450,0.20160728,105900.0,105890.0,0.408011]
[1734482063947,0.51519828,105900.0,105880.0,0.3608]
[1734482064169,0.49363958,105890.0,105880.0,0.047214]
[1734482064356,0.49363958,105890.0,105880.0,0.057214]
[1734482064753,0.408011,105890.0,105880.0,0.057214]
[1734482065157,0.3608,105890.0,105880.0,0.057214]
[1734482065762,0.07572461,105900.0,105880.0,0.057214]
[1734482066066,0.07572461,105900.0,105890.0,0.047211]
[1734482066566,0.07572461,105900.0,105890.0,0.408011]
[1734482066774,0.43652461,105900.0,105890.0,0.047211]
[1734482067562,0.43652461,105900.0,105890.0,0.095411]
[1734482068663,0.07572461,105900.0,105890.0,0.095411]
[1734482070772,0.07572461,105900.0,105890.0,0.456211]
[1734482072558,0.07572461,105900.0,105890.0,0.408011]
[1734482072965,0.07572461,105900.0,105890.0,0.047211]
[1734482074377,0.07572461,105900.0,105890.0,0.408011]
[1734482074663,0.00954691,105900.0,105890.0,0.49363958]
[1734482074869,0.09312593,105910.0,105890.0,0.49363958]
[1734482075066,0.09312593,105910.0,105900.0,0.408007]
[1734482075267,0.04732593,105910.0,105900.0,0.408007]
[1734482076967,0.04732593,105910.0,105900.0,0.047207]
[1734482076968,0.40812593,105910.0,105900.0,0.047207]
[1734482077266,0.047211,105890.0,105880.0,0.465114]
[1734482077766,0.49363958,105890.0,105880.0,0.01]
[1734482077970,0.59113958,105890.0,105880.0,0.01]
[1734482078566,0.64133958,105890.0,105880.0,0.01]
[1734482078766,0.64133958,105890.0,105880.0,0.057216]
[1734482079073,0.555711,105890.0,105880.0,0.057216]
[1734482079572,0.56510927,105890.0,105880.0,0.057216]
[1734482079773,0.51490927,105890.0,105880.0,0.057216]
[1734482080575,0.46550927,105890.0,105880.0,0.057216]
[1734482081066,0.46550927,105890.0,105880.0,0.01]
[1734482081273,0.46550927,105890.0,105880.0,0.00909812]
[1734482081274,0.55113785,105890.0,105880.0,0.00909812]
[1734482083478,0.85113785,105890.0,105880.0,0.00909812]
[1734482083970,0.55113785,105890.0,105880.0,0.00909812]
[1734482091079,0.04722,105870.0,105860.0,7.879e-05]
[1734482091278,0.94007716,105870.0,105860.0,0.01007879]
[1734482094785,0.85444858,105870.0,105860.0,0.01007879]
[1734482095184,0.86391562,105870.0,105860.0,0.01007879]
[1734482095390,0.86391562,105870.0,105860.0,0.01057879]
[1734482095886,0.14231562,105870.0,105860.0,0.01057879]
[1734482096095,0.41748704,105870.0,105860.0,1.51057879]
[1734482096389,0.50311562,105870.0,105860.0,1.56147879]
[1734482097495,0.50311562,105870.0,105860.0,1.56197879]
[1734482098183,0.50311562,105870.0,105860.0,0.06197879]
[1734482098394,0.50311562,105870.0,105860.0,0.06147879]
[1734482098992,0.41748704,105870.0,105860.0,0.10870379]
[1734482099389,0.04722,105870.0,105860.0,0.60613237]
[1734482099582,0.3608,105880.0,105860.0,0.60613237]
[1734482099782,0.047218,105880.0,105870.0,0.098118]
[1734482099985,0.047218,105880.0,105870.0,0.458918]
[1734482100287,0.3608,105890.0,105880.0,0.047213]
[1734482100288,0.047213,105890.0,105880.0,0.047213]
[1734482100491,0.38063624,105900.0,105880.0,0.057213]
[1734482100695,0.05825043,105900.0,105890.0,0.456211]
[1734482100889,0.04862622,105900.0,105890.0,0.456211]
[1734482101487,0.04912622,105900.0,105890.0,0.456211]
[1734482101687,0.04912622,105900.0,105890.0,0.505411]
[1734482102285,0.04862622,105900.0,105890.0,0.144611]
[1734482102485,0.047209,105900.0,105890.0,0.144611]
[1734482102993,0.047209,105900.0,105890.0,0.505411]
[1734482103498,0.047709,105900.0,105890.0,0.505411]
[1734482104392,0.047209,105900.0,105890.0,0.505411]
[1734482105300,0.047709,105900.0,105890.0,0.505411]
[1734482106692,0.0005,105900.0,105890.0,0.505411]
[1734482111385,0.49413558,105900.0,105890.0,0.0482]
[1734482111588,0.047211,105890.0,105880.0,0.01]
[1734482111894,0.54523958,105890.0,105880.0,0.01]
[1734482113700,0.59613958,105890.0,105880.0,0.01]
[1734482114987,0.23533958,105890.0,105880.0,0.01]
[1734482115194,0.59613958,105890.0,105880.0,0.01]
[1734482118594,0.6053688,105890.0,105880.0,0.01]
[1734482118795,0.047216,105870.0,105860.0,7.879e-05]
[1734482118997,0.13284458,105870.0,105860.0,0.01007879]
[1734482119399,0.13284458,105870.0,105860.0,0.01057879]
[1734482120004,0.49364458,105870.0,105860.0,0.01057879]
[1734482120397,0.49364458,105870.0,105860.0,0.01007879]
[1734482121093,0.408016,105870.0,105860.0,0.01007879]
[1734482121293,0.408016,105870.0,105860.0,0.01057879]
[1734482121496,0.047216,105870.0,105860.0,0.01057879]
[1734482121701,0.047216,105870.0,105860.0,0.37137879]
[1734482122003,0.047216,105870.0,105860.0,0.01057879]
[1734482122393,0.408016,105870.0,105860.0,0.01007879]
[1734482122594,0.05643722,105890.0,105860.0,0.50372737]
[1734482122796,0.05643722,105890.0,105880.0,0.418011]
[1734482123000,0.04912013,105900.0,105890.0,0.047207]
[1734482123196,0.04912013,105900.0,105890.0,0.095107]
[1734482123403,0.04862013,105900.0,105890.0,0.455907]
[1734482123604,0.00141713,105900.0,105890.0,0.54153558]
[1734482124099,0.00141713,105900.0,105890.0,0.455907]
[1734482124301,0.00191713,105900.0,105890.0,0.455907]
[1734482124707,0.00191713,105900.0,105890.0,1.955907]
[1734482125001,0.04911913,105900.0,105890.0,1.955907]
[1734482125595,0.04911913,105900.0,105890.0,0.455907]
[1734482126501,0.04861913,105900.0,105890.0,0.455907]
[1734482128409,0.13424771,105900.0,105890.0,0.095107]
[1734482128706,0.13424771,105900.0,105890.0,0.455907]
[1734482129193,0.04861913,105900.0,105890.0,0.455907]
[1734482130909,0.00141713,105900.0,105890.0,0.455907]
[1734482134419,0.00961433,105910.0,105890.0,0.54153558]
[1734482134625,0.00961433,105910.0,105900.0,0.408002]
[1734482135306,0.05731233,105910.0,105900.0,0.408002]
[1734482135711,0.14294091,105910.0,105900.0,0.408002]
[1734482135900,0.14294091,105910.0,105890.0,0.455906]
[1734482136102,0.13283058,105900.0,105890.0,0.455906]
[1734482136405,0.047207,105890.0,105880.0,0.464608]
[1734482137011,0.13283558,105890.0,105880.0,0.464608]
[1734482137317,0.13283558,105890.0,105880.0,0.418008]
[1734482137506,0.22893558,105890.0,105880.0,0.418008]
[1734482137707,0.22893558,105890.0,105880.0,0.057208]
[1734482138804,0.58973558,105890.0,105880.0,0.01]
[1734482139000,0.22893558,105890.0,105880.0,0.01]
[1734482139217,0.58973558,105890.0,105880.0,0.01]
[1734482144117,0.59900454,105890.0,105880.0,0.01]
[1734482147113,0.047211,105880.0,105870.0,0.0105]
[1734482147312,0.49363958,105880.0,105870.0,0.0105]
[1734482148314,0.49363958,105880.0,105870.0,0.01]
[1734482149320,0.57926816,105880.0,105870.0,0.0105]
[1734482152317,0.57926816,105880.0,105870.0,0.01]
[1734482152818,0.49363958,105880.0,105870.0,0.01]
[1734482153320,0.49363958,105880.0,105870.0,0.0105]
[1734482154311,0.49363958,105880.0,105870.0,0.01]
[1734482158215,0.57926816,105880.0,105870.0,0.01]
[1734482159532,0.408011,105880.0,105870.0,0.01]
[1734482159731,0.49363958,105880.0,105870.0,0.01]
[1734482161024,0.047221,105860.0,105840.0,0.4997]
[1734482161227,0.13285258,105850.0,105840.0,0.4997]
[1734482161434,0.49365258,105850.0,105840.0,0.1018]
[1734482161729,0.57928116,105850.0,105840.0,0.01]
[1734482162227,0.57928116,105850.0,105840.0,0.01007335]
[1734482162430,0.57928116,105850.0,105840.0,7.335e-05]
[1734482164124,0.047229,105840.0,105830.0,0.01]
[1734482164330,0.57928616,105840.0,105830.0,0.01]
[1734482165116,0.57938141,105840.0,105830.0,0.0100589]
[1734482169328,0.047242,105810.0,105800.0,0.45621776]
[1734482169535,0.13287058,105810.0,105800.0,0.46621776]
[1734482169738,0.57929916,105810.0,105800.0,0.09541776]
[1734482170037,0.57929916,105810.0,105800.0,0.094]
[1734482171940,0.57929916,105810.0,105800.0,0.0462]
[1734482172125,0.57929916,105810.0,105790.0,0.01]
[1734482172126,0.047247,105800.0,105790.0,0.01]
[1734482172326,0.49367558,105800.0,105790.0,0.01]
[1734482172925,0.54017558,105800.0,105790.0,0.01]
[1734482174236,0.047251,105790.0,105780.0,0.0492]
[1734482174437,0.047256,105780.0,105770.0,0.0469]
[1734482174734,0.49368458,105780.0,105770.0,0.0469]
[1734482177537,0.047256,105780.0,105770.0,0.13252858]
[1734482177728,0.047256,105780.0,105770.0,0.4077]
[1734482178236,0.047256,105780.0,105770.0,0.0469]
[1734482178433,0.13288458,105780.0,105770.0,0.4077]
[1734482178636,0.13288458,105780.0,105770.0,0.0469]
[1734482178832,0.047256,105780.0,105770.0,0.0469]
[1734482179137,0.047256,105780.0,105770.0,0.4077]
[1734482179639,0.047256,105780.0,105770.0,1.5474]
[1734482180325,0.13288458,105780.0,105770.0,1.5474]
[1734482181037,0.13288458,105780.0,105770.0,0.0474]
[1734482181335,0.047265,105760.0,105750.0,0.3608]
[1734482181637,0.047265,105760.0,105750.0,0.0935]
[1734482181638,0.13289358,105760.0,105750.0,0.0935]
[1734482182237,0.13296745,105760.0,105750.0,0.0935]
[1734482183036,0.04733887,105760.0,105750.0,0.0935]
[1734482184945,0.04733887,105760.0,105750.0,1.5935]
[1734482185142,0.05682252,105760.0,105750.0,1.5935]
[1734482185645,0.05682252,105760.0,105750.0,1.5]
[1734482186236,0.05682252,105760.0,105740.0,0.418073]
[1734482186529,0.047269,105750.0,105740.0,0.418073]
[1734482186734,0.05682452,105760.0,105750.0,0.047269]
[1734482186941,0.05682452,105760.0,105750.0,0.408069]
[1734482187533,0.1424531,105760.0,105750.0,0.3608]
[1734482187948,0.1424531,105760.0,105750.0,0.408069]
[1734482187949,0.05682452,105760.0,105750.0,0.408069]
[1734482188243,7.387e-05,105760.0,105750.0,1.99369758]
[1734482190244,7.387e-05,105760.0,105750.0,1.908069]
[1734482191333,0.13296745,105760.0,105750.0,0.3608]
[1734482191542,0.047269,105750.0,105740.0,0.418073]
[1734482194039,0.13289758,105750.0,105740.0,0.418073]
[1734482194446,0.047269,105750.0,105740.0,0.418073]
[1734482194938,0.05673747,105750.0,105740.0,0.418073]
[1734482195446,0.05673747,105750.0,105740.0,0.418573]
[1734482196552,0.14236605,105750.0,105740.0,0.418573]
[1734482197242,0.05673747,105750.0,105740.0,0.418573]
[1734482199753,0.14236605,105750.0,105740.0,0.418573]
[1734482199942,0.14236605,105750.0,105740.0,0.0105]
[1734482200538,0.14236605,105750.0,105740.0,0.418574]
[1734482200855,0.05673747,105750.0,105740.0,0.418574]
[1734482201448,0.14236605,105750.0,105740.0,0.418074]
[1734482201649,0.14236605,105750.0,105740.0,0.057274]
[1734482202647,0.05673747,105750.0,105740.0,0.057274]
[1734482203452,0.14236605,105750.0,105740.0,0.3708]
[1734482203848,0.14236605,105750.0,105740.0,0.418074]
[1734482204956,0.05673747,105750.0,105740.0,0.418074]
[1734482206356,0.05673747,105750.0,105740.0,0.057274]
[1734482206559,0.14236605,105750.0,105740.0,0.057274]
[1734482207148,0.88879463,105750.0,105730.0,0.0005]
[1734482207446,0.88879463,105750.0,105710.0,0.00141865]
[1734482207447,0.047281,105730.0,105710.0,0.455367]
[1734482207652,0.54190458,105740.0,105730.0,0.047278]
[1734482207850,0.456276,105740.0,105730.0,0.047278]
[1734482208053,0.095476,105740.0,105730.0,0.408078]
[1734482208257,0.09509705,105750.0,105740.0,0.047274]
[1734482208258,0.05673847,105750.0,105740.0,0.047274]
[1734482208456,0.05673847,105750.0,105740.0,0.454574]
[1734482208947,0.05673847,105750.0,105740.0,1.954574]
[1734482209149,0.05673847,105750.0,105740.0,0.454574]
[1734482209752,0.05673847,105750.0,105740.0,1.954574]
[1734482210052,0.04727,105750.0,105740.0,1.954574]
[1734482210253,0.04727,105750.0,105740.0,0.454574]
[1734482214260,0.13289858,105750.0,105740.0,0.093774]
[1734482216648,0.50342549,105760.0,105750.0,0.047269]
[1734482216856,0.00973191,105760.0,105750.0,0.49369758]
[1734482217159,0.04726,105770.0,105760.0,0.047261]
[1734482217656,0.04776,105770.0,105760.0,0.047261]
[1734482218160,0.04776,105770.0,105760.0,0.04733487]
[1734482218361,0.047277,105740.0,105720.0,0.047282]
[1734482218564,0.408074,105740.0,105720.0,0.0005]
[1734482218860,0.408074,105740.0,105720.0,0.14078]
[1734482219061,0.047278,105730.0,105720.0,0.14078]
[1734482219255,0.408078,105730.0,105720.0,0.14078]
[1734482219568,0.49370658,105730.0,105720.0,0.0452]
[1734482219863,0.047282,105720.0,105710.0,0.00141885]
[1734482220060,0.047282,105720.0,105710.0,0.04870585]
[1734482220061,0.408082,105720.0,105710.0,0.04870585]
[1734482220770,0.49371058,105720.0,105710.0,0.00141885]
[1734482221075,0.58581058,105720.0,105710.0,0.00141885]
[1734482221663,0.67143916,105720.0,105710.0,0.00141885]
[1734482222164,0.62898255,105720.0,105710.0,0.00141885]
[1734482222348,0.047287,105710.0,105700.0,0.11]
[1734482222554,0.53688755,105710.0,105700.0,0.11]
[1734482222967,0.53688755,105710.0,105700.0,0.157291]
[1734482223768,0.53696121,105710.0,105700.0,0.11]
[1734482224357,0.54647055,105710.0,105700.0,0.11]
[1734482231561,0.54647055,105710.0,105700.0,0.1105]
[1734482232668,0.54647055,105710.0,105700.0,0.11]
[1734482233458,0.54647055,105710.0,105700.0,0.1105]
[1734482234469,0.54647055,105710.0,105700.0,0.11]
[1734482235471,0.54647055,105710.0,105700.0,0.1105]
[1734482235866,0.047296,105690.0,105680.0,0.0456]
[1734482236063,0.48371867,105690.0,105680.0,0.0556]
[1734482236263,0.53101467,105690.0,105680.0,0.0556]